fUST/lending_fUST_20241106
["ID","MTS","AMOUNT","RATE_DAILY","PERIOD"]
[341454485,1730901049657,-189.0,0.00030082,2]
[341454486,1730901049667,-189.0,0.00030082,2]
[341454487,1730901049676,-189.0,0.00030082,2]
[341454488,1730901049686,-189.0,0.00030082,2]
[341454489,1730901049695,-153.0,0.00030082,2]
[341454490,1730901049705,-189.0,0.00030082,2]
[341454491,1730901049714,-189.0,0.00030082,2]
[341454492,1730901049724,-189.0,0.00030082,2]
[341454493,1730901049734,-189.0,0.00030082,2]
[341454494,1730901049744,-189.0,0.00030082,2]
[341454495,1730901049754,-189.0,0.00030082,2]
[341454496,1730901049764,-189.0,0.00030082,2]
[341454497,1730901049773,-189.0,0.00030082,2]
[341454498,1730901049783,-189.0,0.00030082,2]
[341454499,1730901049792,-189.0,0.00030082,2]
[341454500,1730901049801,-189.0,0.00030082,2]
[341454501,1730901049812,-189.0,0.00030082,2]
[341454502,1730901049822,-189.0,0.00030082,2]
[341454503,1730901049831,-189.0,0.00030082,2]
[341454504,1730901049840,-153.0,0.00030082,2]
[341454505,1730901049849,-153.0,0.00030082,2]
[341454506,1730901049858,-500.0,0.00030136,2]
[341454507,1730901049867,-603.4,0.00030136,2]
[341454508,1730901049877,-500.0,0.00030136,2]
[341454509,1730901049886,-500.0,0.00030136,2]
[341454510,1730901049895,-500.0,0.00030136,2]
[341454511,1730901049904,-500.0,0.00030136,2]
[341454512,1730901049913,-508.95,0.00030136,2]
[341454513,1730901049922,-891.15,0.00030136,2]
[341454514,1730901049932,-4686.94,0.00030136,2]
[341454515,1730901049941,-500.0,0.00030136,2]
[341454516,1730901049952,-713.47,0.00030136,2]
[341454517,1730901049961,-4318.2,0.00030136,2]
[341454518,1730901049970,-690.35,0.00030136,2]
[341454519,1730901049979,-500.0,0.00030136,2]
[341454520,1730901049988,-239.05480485,0.00030136,2]
[341454521,1730901049997,-807.28,0.00030136,2]
[341454522,1730901050007,-56054.3832164,0.00030137,10]
[341454523,1730901050016,-500.0,0.00030137,2]
[341454524,1730901050025,-500.0,0.00030137,2]
[341454525,1730901050034,-160.75384229,0.00030137,2]
[341454526,1730901050043,-150.11,0.00030137,10]
[341454527,1730901050052,-151.0,0.00030137,7]
[341454528,1730901050062,-294.171074,0.00030137,7]
[341454529,1730901050072,-294.171074,0.00030137,7]
[341454530,1730901050081,-150.11,0.00030137,2]
[341454531,1730901050090,-151.0,0.00030137,7]
[341454532,1730901050099,-1000.0,0.0003017,5]
[341454533,1730901050108,-503.90002471,0.0003017,5]
[341454534,1730901050117,-2138.86,0.000302,14]
[341454535,1730901050126,-266.65,0.000302,14]
[341454536,1730901050135,-602.0,0.00030205,2]
[341454537,1730901050144,-152.238,0.0003031,3]
[341454538,1730901050154,-150.0,0.00030323,2]
[341454539,1730901050164,-150.0,0.00030323,2]
[341454540,1730901050173,-500.0,0.0003041,2]
[341454541,1730901050183,-603.4,0.0003041,2]
[341454542,1730901050192,-500.0,0.0003041,2]
[341454543,1730901050203,-500.0,0.0003041,2]
[341454544,1730901050214,-500.0,0.0003041,2]
[341454545,1730901050225,-500.0,0.0003041,2]
[341454546,1730901050235,-508.95,0.0003041,2]
[341454547,1730901050245,-891.15,0.0003041,2]
[341454548,1730901050255,-4686.94,0.0003041,2]
[341454549,1730901050265,-500.0,0.0003041,2]
[341454550,1730901050273,-713.47,0.0003041,2]
[341454551,1730901050284,-216.01366,0.0003041,7]
[341454552,1730901050294,-216.01366,0.0003041,7]
[341454553,1730901050304,-4318.2,0.0003041,2]
[341454554,1730901050316,-690.35,0.0003041,2]
[341454555,1730901050325,-500.0,0.0003041,2]
[341454556,1730901050335,-807.28,0.0003041,2]
[341454557,1730901050345,-150.11,0.00030411,10]
[341454558,1730901050356,-182.8798105,0.00030411,2]
[341454559,1730901050365,-531.1696191,0.00030498,2]
[341454560,1730901050375,-150.112233,0.000305,13]
[341454561,1730901050385,-150.112236,0.000305,19]
[341454562,1730901050395,-1000.0,0.00030588,5]
[341454563,1730901050405,-1000.0,0.00030588,5]
[341454564,1730901050414,-500.0,0.00030684,2]
[341454565,1730901050424,-603.4,0.00030684,2]
[341454566,1730901050435,-500.0,0.00030684,2]
[341454567,1730901050445,-500.0,0.00030684,2]
[341454568,1730901050459,-500.0,0.00030684,2]
[341454569,1730901050469,-500.0,0.00030684,2]
[341454570,1730901050478,-508.95,0.00030684,2]
[341454571,1730901050487,-891.15,0.00030684,2]
[341454572,1730901050498,-4686.94,0.00030684,2]
[341454573,1730901050507,-500.0,0.00030684,2]
[341454574,1730901050517,-713.47,0.00030684,2]
[341454575,1730901050526,-4318.2,0.00030684,2]
[341454576,1730901050536,-690.35,0.00030684,2]
[341454577,1730901050546,-500.0,0.00030684,2]
[341454578,1730901050559,-807.28,0.00030684,2]
[341454579,1730901050568,-150.11,0.00030685,10]
[341454580,1730901050577,-150.112235,0.000307,20]
[341454581,1730901050587,-771.80602329,0.00030858,2]
[341454582,1730901050598,-150.112233,0.000309,19]
[341454583,1730901050610,-150.112233,0.000309,20]
[341454584,1730901050622,-500.0,0.00030958,2]
[341454585,1730901050632,-603.4,0.00030958,2]
[341454586,1730901050642,-500.0,0.00030958,2]
[341454587,1730901050652,-500.0,0.00030958,2]
[341454588,1730901050662,-500.0,0.00030958,2]
[341454589,1730901050672,-500.0,0.00030958,2]
[341454590,1730901050683,-151.0,0.00030958,7]
[341454591,1730901050695,-508.95,0.00030958,2]
[341454592,1730901050705,-294.171074,0.00030958,7]
[341454593,1730901050716,-294.171074,0.00030958,7]
[341454594,1730901050725,-891.15,0.00030958,2]
[341454595,1730901050738,-4686.94,0.00030958,2]
[341454596,1730901050748,-500.0,0.00030958,2]
[341454597,1730901050758,-713.47,0.00030958,2]
[341454598,1730901050767,-4318.2,0.00030958,2]
[341454599,1730901050777,-690.35,0.00030958,2]
[341454600,1730901050786,-386.82915339,0.00030958,2]
[341454601,1730901050794,-807.28,0.00030958,2]
[341454602,1730901050803,-151.0,0.00030958,7]
[341454603,1730901050814,-150.11,0.00030959,10]
[341454604,1730901050823,-1000.0,0.00031,120]
[341454605,1730901050834,-19311.75832491,0.00031,2]
[341454606,1730901050845,-216.01366,0.00031,7]
[341454607,1730901050854,-216.01366,0.00031,7]
[341454608,1730901050863,-211.2956293,0.00031068,30]
[341454609,1730901050873,-211.2956293,0.00031068,30]
[341454610,1730901050884,-211.2956293,0.00031068,30]
[341454611,1730901050895,-303.4019452,0.00031068,30]
[341454612,1730901050904,-153.0,0.00031068,30]
[341454613,1730901050914,-211.2956293,0.00031068,30]
[341454614,1730901050923,-211.2956293,0.00031068,30]
[341454615,1730901050933,-152.74,0.0003108,5]
[341454616,1730901050942,-165.3056832,0.00031096,30]
[341454617,1730901050954,-150.112233,0.000311,13]
[341454618,1730901050963,-500.0,0.00031232,2]
[341454619,1730901050974,-603.4,0.00031232,2]
[341454620,1730901050986,-500.0,0.00031232,2]
[341454621,1730901050995,-198.96557927,0.00031232,2]
[341454622,1730901051005,-500.0,0.00031232,2]
[341454623,1730901051015,-500.0,0.00031232,2]
[341454624,1730901051026,-508.95,0.00031232,2]
[341454625,1730901051037,-891.15,0.00031232,2]
[341454626,1730901051048,-4686.94,0.00031232,2]
[341454627,1730901051059,-500.0,0.00031232,2]
[341454628,1730901051075,-713.47,0.00031232,2]
[341454629,1730901051086,-4318.2,0.00031232,2]
[341454630,1730901051096,-690.35,0.00031232,2]
[341454631,1730901051106,-807.28,0.00031232,2]
[341454632,1730901051120,-151.0,0.00031232,7]
[341454633,1730901051129,-153.0,0.00031233,30]
[341454634,1730901051139,-153.0,0.00031233,30]
[341454635,1730901051147,-211.2956293,0.00031233,30]
[341454636,1730901051156,-303.4019452,0.00031233,30]
[341454637,1730901051167,-153.0,0.00031233,30]
[341454638,1730901051176,-153.0,0.00031233,30]
[341454639,1730901051186,-153.0,0.00031233,30]
[341454640,1730901051196,-289.56,0.00031233,10]
[341454641,1730901051206,-1500.0,0.00031247,2]
[341454642,1730901051216,-1427.81848781,0.00031247,5]
[341454643,1730901051227,-153.0,0.00031342,30]
[341454644,1730901051238,-531.1696191,0.00031382,2]
[341454645,1730901051249,-150.112233,0.000314,19]
[341454646,1730901051259,-150.112233,0.000314,11]
[341454647,1730901051271,-136313.81780927,0.00031482,2]
[341454655,1730901183689,1169.27083333,0.0002082,2]
[341454660,1730901796017,1169.27083333,0.0002082,2]
[341454662,1730901947271,160.168334,0.00013973,2]
[341454746,1730902232163,-568.7756892,0.00024766,2]
[341454747,1730902232176,-600.49514413,0.00024766,2]
[341454748,1730902232186,-500.0,0.00027397,2]
[341454749,1730902232195,-500.0,0.00027397,2]
[341454750,1730902232205,-500.0,0.00027397,2]
[341454751,1730902232215,-569.23946109,0.00027397,2]
[341454752,1730902232225,-500.0,0.00027397,2]
[341454753,1730902232234,-544.55855869,0.00027397,2]
[341454754,1730902232244,-500.0,0.00027397,2]
[341454755,1730902232254,-500.0,0.00027397,2]
[341454756,1730902232264,-500.0,0.00027397,2]
[341454757,1730902232273,-500.0,0.00027397,2]
[341454758,1730902232283,-528.19269926,0.00027397,2]
[341454759,1730902232292,-500.0,0.00027397,2]
[341454760,1730902232301,-500.0,0.00027397,2]
[341454761,1730902232310,-500.0,0.00027397,2]
[341454762,1730902232320,-500.0,0.00027397,2]
[341454763,1730902232330,-173.86,0.00027397,2]
[341454764,1730902232340,-500.0,0.00027397,2]
[341454765,1730902232351,-508.07584746,0.00027397,2]
[341454766,1730902232363,-508.99943269,0.00027397,2]
[341454767,1730902232373,-500.0,0.00027397,2]
[341454768,1730902232383,-500.0,0.00027397,2]
[341454769,1730902232395,-500.0,0.00027397,2]
[341454770,1730902232404,-500.0,0.00027397,2]
[341454771,1730902232414,-500.0,0.00027397,2]
[341454772,1730902232424,-500.0,0.00027397,2]
[341454773,1730902232434,-500.0,0.00027397,2]
[341454774,1730902232445,-507.28468924,0.00027397,2]
[341454775,1730902232454,-500.0,0.00027397,2]
[341454776,1730902232463,-500.0,0.00027397,2]
[341454777,1730902232473,-500.0,0.00027397,2]
[341454778,1730902232483,-500.0,0.00027397,2]
[341454779,1730902232493,-511.08581343,0.00027397,2]
[341454780,1730902232504,-500.0,0.00027669,2]
[341454781,1730902232514,-419.52770081,0.00027669,2]
[341454782,1730902232525,-500.0,0.00027669,2]
[341454783,1730902232535,-399.3705911,0.00027669,2]
[341454784,1730902232545,-500.0,0.00027669,2]
[341454785,1730902232556,-500.0,0.00027669,2]
[341454786,1730902232576,-500.0,0.00027669,2]
[341454787,1730902232588,-527.54773109,0.00027669,2]
[341454788,1730902232598,-500.0,0.00027669,2]
[341454789,1730902232608,-500.0,0.00027669,2]
[341454790,1730902232617,-359.49365698,0.0002767,2]
[341454791,1730902232627,-500.0,0.0002767,2]
[341454792,1730902232638,-505.57370327,0.0002767,2]
[341454793,1730902232648,-587.10903577,0.0002767,2]
[341454794,1730902232657,-500.0,0.0002767,2]
[341454795,1730902232667,-504.75681287,0.0002767,2]
[341454796,1730902232679,-453.03191348,0.0002767,2]
[341454797,1730902232688,-500.0,0.0002767,2]
[341454798,1730902232698,-506.84285925,0.0002767,2]
[341454799,1730902232708,-500.0,0.0002767,2]
[341454800,1730902232718,-500.0,0.0002767,2]
[341454801,1730902232729,-502.42707076,0.0002767,2]
[341454802,1730902232739,-500.0,0.0002767,2]
[341454803,1730902232749,-500.0,0.0002767,2]
[341454804,1730902232759,-500.0,0.0002767,2]
[341454805,1730902232770,-500.0,0.0002767,2]
[341454806,1730902232780,-501.63662102,0.0002767,2]
[341454807,1730902232791,-500.0,0.0002767,2]
[341454808,1730902232803,-500.0,0.0002767,2]
[341454809,1730902232815,-501.58626495,0.0002767,2]
[341454810,1730902232828,-500.0,0.0002767,2]
[341454811,1730902232838,-500.0,0.0002767,2]
[341454812,1730902232849,-500.0,0.0002767,2]
[341454813,1730902232860,-500.0,0.0002767,2]
[341454814,1730902232869,-500.0,0.0002767,2]
[341454815,1730902232879,-500.0,0.0002767,2]
[341454816,1730902232888,-500.0,0.0002767,2]
[341454817,1730902232899,-500.0,0.0002767,2]
[341454818,1730902232908,-508.1129698,0.0002767,2]
[341454819,1730902232918,-504.22749147,0.0002767,2]
[341454820,1730902232929,-522.24231461,0.0002767,2]
[341454821,1730902232939,-500.0,0.0002767,2]
[341454822,1730902232948,-500.0,0.0002767,2]
[341454823,1730902232958,-507.94117746,0.0002767,2]
[341454824,1730902232968,-500.0,0.0002767,2]
[341454825,1730902232978,-500.0,0.0002767,2]
[341454826,1730902232988,-500.0,0.0002767,2]
[341454827,1730902232997,-500.0,0.0002767,2]
[341454828,1730902233007,-500.0,0.0002767,2]
[341454829,1730902233017,-500.0,0.0002767,2]
[341454830,1730902233027,-500.0,0.0002767,2]
[341454831,1730902233037,-500.0,0.0002767,2]
[341454832,1730902233046,-500.0,0.0002767,2]
[341454833,1730902233056,-410.25423262,0.0002767,2]
[341454834,1730902233066,-500.0,0.0002767,2]
[341454835,1730902233075,-500.0,0.00027671,2]
[341454836,1730902233085,-500.0,0.00027671,2]
[341454837,1730902233095,-213.74497301,0.00027671,2]
[341454838,1730902233105,-478.56315738,0.00027671,2]
[341454839,1730902233114,-500.0,0.00027671,2]
[341454840,1730902233124,-500.0,0.00027671,2]
[341454841,1730902233134,-500.0,0.00027671,2]
[341454842,1730902233143,-500.0,0.00027673,5]
[341454843,1730902233153,-153.0,0.00027753,2]
[341454844,1730902233163,-153.0,0.00027753,2]
[341454845,1730902233172,-153.0,0.00027753,2]
[341454846,1730902233185,-153.0,0.00027753,2]
[341454847,1730902233199,-153.0,0.00027753,2]
[341454848,1730902233210,-153.0,0.00027753,2]
[341454849,1730902233221,-153.0,0.00027753,2]
[341454850,1730902233232,-153.0,0.00027753,2]
[341454851,1730902233242,-153.0,0.00027753,2]
[341454852,1730902233252,-153.0,0.00027753,2]
[341454853,1730902233262,-153.0,0.00027753,2]
[341454854,1730902233423,-153.0,0.00027753,2]
[341454855,1730902233444,-153.0,0.00027753,2]
[341454856,1730902233454,-153.0,0.00027753,2]
[341454857,1730902233464,-153.0,0.00027757,2]
[341454858,1730902233474,-500.0,0.00027852,2]
[341454859,1730902233484,-631.23,0.00027852,2]
[341454860,1730902233494,-1757.6,0.00027852,2]
[341454861,1730902233503,-500.0,0.00027852,2]
[341454862,1730902233514,-500.0,0.00027852,2]
[341454863,1730902233523,-500.0,0.00027852,2]
[341454864,1730902233533,-1619.32,0.00027852,2]
[341454865,1730902233542,-500.0,0.00027852,2]
[341454866,1730902233552,-500.0,0.00027852,2]
[341454867,1730902233562,-153.0,0.00027853,2]
[341454868,1730902233571,-153.0,0.00027853,2]
[341454869,1730902233581,-153.0,0.00027853,2]
[341454870,1730902233590,-500.0,0.00027853,2]
[341454871,1730902233600,-500.0,0.00027853,2]
[341454872,1730902233609,-500.0,0.00027853,2]
[341454873,1730902233619,-500.0,0.00027853,2]
[341454874,1730902233628,-500.0,0.00027853,2]
[341454875,1730902233637,-500.0,0.00027853,2]
[341454876,1730902233647,-500.0,0.00027853,2]
[341454877,1730902233657,-500.0,0.00027853,2]
[341454878,1730902233666,-500.0,0.00027853,2]
[341454879,1730902233676,-500.0,0.00027853,2]
[341454880,1730902233686,-500.0,0.00027853,2]
[341454881,1730902233696,-500.0,0.00027862,5]
[341454882,1730902233706,-500.0,0.00027862,2]
[341454883,1730902233716,-507.16685945,0.00027944,2]
[341454884,1730902233725,-503.20294273,0.00027944,2]
[341454885,1730902233735,-608.03105531,0.00027945,2]
[341454886,1730902233744,-500.0,0.00027945,2]
[341454887,1730902233754,-500.0,0.00027945,2]
[341454888,1730902233767,-399.20379951,0.00027945,2]
[341454889,1730902233782,-100.79620049,0.00027945,2]
[341454890,1730902233792,-504.88013199,0.00027953,5]
[341454891,1730902233802,-631.23,0.00028126,2]
[341454892,1730902233812,-1757.6,0.00028126,2]
[341454893,1730902233825,-500.0,0.00028126,2]
[341454894,1730902233836,-1619.32,0.00028126,2]
[341454895,1730902233846,-500.0,0.00028127,2]
[341454896,1730902233856,-500.0,0.00028127,2]
[341454897,1730902233867,-500.0,0.00028127,2]
[341454898,1730902233876,-179.25620529,0.00028187,19]
[341454899,1730902233886,-500.0,0.00028218,2]
[341454900,1730902233897,-500.0,0.00028218,2]
[341454901,1730902233907,-500.0,0.00028219,2]
[341454902,1730902233917,-500.0,0.00028219,2]
[341454903,1730902233927,-500.0,0.00028219,2]
[341454904,1730902233936,-359.9,0.00028393,2]
[341454905,1730902233946,-631.23,0.000284,2]
[341454906,1730902233955,-1757.6,0.000284,2]
[341454907,1730902233965,-500.0,0.000284,2]
[341454908,1730902233975,-1619.32,0.000284,2]
[341454909,1730902233985,-500.0,0.00028401,2]
[341454910,1730902233995,-500.0,0.00028401,2]
[341454911,1730902234004,-500.0,0.00028401,2]
[341454912,1730902234014,-544.12285893,0.00028491,2]
[341454913,1730902234023,-500.0,0.00028493,2]
[341454914,1730902234033,-500.0,0.00028493,2]
[341454915,1730902234042,-500.0,0.00028493,2]
[341454916,1730902234053,-631.23,0.00028674,2]
[341454917,1730902234062,-1757.6,0.00028674,2]
[341454918,1730902234072,-500.0,0.00028674,2]
[341454919,1730902234082,-1619.32,0.00028674,2]
[341454920,1730902234092,-500.0,0.00028675,2]
[341454921,1730902234101,-500.0,0.00028675,2]
[341454922,1730902234111,-500.0,0.00028675,2]
[341454923,1730902234122,-500.0,0.00028767,2]
[341454924,1730902234132,-500.0,0.00028767,2]
[341454925,1730902234142,-500.0,0.00028767,2]
[341454926,1730902234151,-631.23,0.00028948,2]
[341454927,1730902234162,-1757.6,0.00028948,2]
[341454928,1730902234171,-500.0,0.00028948,2]
[341454929,1730902234182,-1619.32,0.00028948,2]
[341454930,1730902234191,-500.0,0.00028949,2]
[341454931,1730902234200,-414.68448674,0.00028949,2]
[341454932,1730902234209,-500.0,0.00028949,2]
[341454933,1730902234218,-500.0,0.0002904,2]
[341454934,1730902234227,-226.40880533,0.0002904,2]
[341454935,1730902234237,-500.0,0.00029041,2]
[341454936,1730902234246,-500.0,0.00029041,2]
[341454937,1730902234256,-500.0,0.00029041,2]
[341454938,1730902234265,-1000.0,0.00029042,5]
[341454939,1730902234276,-150.0,0.00029191,2]
[341454940,1730902234285,-150.0,0.00029191,2]
[341454941,1730902234295,-631.23,0.00029222,2]
[341454942,1730902234304,-1757.6,0.00029222,2]
[341454943,1730902234313,-500.0,0.00029222,2]
[341454944,1730902234323,-1619.32,0.00029222,2]
[341454945,1730902234333,-500.0,0.00029223,2]
[341454946,1730902234342,-500.0,0.00029223,2]
[341454947,1730902234351,-1000.0,0.00029231,5]
[341454948,1730902234360,-1000.0,0.00029231,2]
[341454949,1730902234369,-500.0,0.00029315,2]
[341454950,1730902234379,-532.6858501,0.00029315,2]
[341454951,1730902234389,-500.0,0.00029315,2]
[341454952,1730902234399,-150.0,0.00029465,2]
[341454953,1730902234409,-529.0,0.00029465,2]
[341454954,1730902234418,-1137.0,0.00029465,2]
[341454955,1730902234428,-2393.0,0.00029465,2]
[341454956,1730902234438,-500.0,0.00029489,2]
[341454957,1730902234447,-631.23,0.00029496,2]
[341454958,1730902234457,-1757.6,0.00029496,2]
[341454959,1730902234466,-500.0,0.00029496,2]
[341454960,1730902234476,-1619.32,0.00029496,2]
[341454961,1730902234485,-500.0,0.00029497,2]
[341454962,1730902234495,-500.0,0.00029497,2]
[341454963,1730902234505,-500.0,0.00029589,2]
[341454964,1730902234514,-500.0,0.00029589,2]
[341454965,1730902234523,-631.23,0.0002977,2]
[341454966,1730902234533,-1757.6,0.0002977,2]
[341454967,1730902234542,-500.0,0.0002977,2]
[341454968,1730902234551,-1619.32,0.0002977,2]
[341454969,1730902234561,-500.0,0.00029771,2]
[341454970,1730902234571,-500.0,0.00029771,2]
[341454971,1730902234580,-500.0,0.00029822,5]
[341454972,1730902234589,-500.0,0.00029858,5]
[341454973,1730902234599,-500.0,0.00029863,2]
[341454974,1730902234609,-500.0,0.00029863,2]
[341454975,1730902234618,-500.0,0.00029973,5]
[341454976,1730902234627,-500.0,0.00029973,5]
[341454977,1730902234637,-300.0,0.0003,2]
[341454978,1730902234647,-46696.02183629,0.0003,2]
[341454979,1730902234658,-631.23,0.00030044,2]
[341454980,1730902234680,-1757.6,0.00030044,2]
[341454981,1730902234691,-500.0,0.00030044,2]
[341454982,1730902234702,-1619.32,0.00030044,2]
[341454983,1730902234713,-500.0,0.00030045,2]
[341454984,1730902234723,-500.0,0.00030045,2]
[341454985,1730902234742,-430.62484348,0.00030136,2]
[341454986,1730902234756,-500.0,0.00030136,2]
[341454987,1730902234770,-153.0,0.00030247,30]
[341454988,1730902234784,-211.2956293,0.00030247,30]
[341454989,1730902234797,-153.0,0.00030247,30]
[341454990,1730902234809,-153.0,0.00030247,30]
[341454991,1730902234825,-153.0,0.00030247,30]
[341454992,1730902234837,-211.2956293,0.00030247,30]
[341454993,1730902234847,-211.2956293,0.00030247,30]
[341454994,1730902234858,-153.0,0.00030247,30]
[341454995,1730902234872,-153.0,0.00030247,30]
[341454996,1730902234884,-153.0,0.00030247,30]
[341454997,1730902234899,-18123.991822,0.00030255,2]
[341454998,1730902234911,-631.23,0.00030318,2]
[341454999,1730902234923,-1757.6,0.00030318,2]
[341455000,1730902234939,-500.0,0.00030318,2]
[341455001,1730902234953,-1619.32,0.00030318,2]
[341455002,1730902234964,-500.0,0.00030319,2]
[341455003,1730902234976,-500.0,0.00030319,2]
[341455004,1730902234988,-500.0,0.0003041,2]
[341455005,1730902235000,-300.0,0.00030411,2]
[341455006,1730902235012,-631.23,0.00030592,2]
[341455007,1730902235023,-1757.6,0.00030592,2]
[341455008,1730902235035,-500.0,0.00030592,2]
[341455009,1730902235047,-1619.32,0.00030592,2]
[341455010,1730902235059,-500.0,0.00030593,2]
[341455011,1730902235072,-500.0,0.00030593,2]
[341455012,1730902235084,-500.0,0.00030684,2]
[341455013,1730902235096,-631.23,0.00030866,2]
[341455014,1730902235107,-1757.6,0.00030866,2]
[341455015,1730902235118,-500.0,0.00030866,2]
[341455016,1730902235130,-1619.32,0.00030866,2]
[341455017,1730902235140,-500.0,0.00030867,2]
[341455018,1730902235151,-500.0,0.00030867,2]
[341455019,1730902235163,-500.0,0.00030958,2]
[341455020,1730902235174,-153.0,0.00030959,30]
[341455021,1730902235191,-153.0,0.00030959,30]
[341455022,1730902235203,-153.0,0.00030959,30]
[341455023,1730902235216,-153.0,0.00031068,30]
[341455024,1730902235229,-153.0,0.00031068,30]
[341455025,1730902235240,-153.0,0.00031068,30]
[341455026,1730902235254,-153.0,0.00031068,30]
[341455027,1730902235266,-631.23,0.0003114,2]
[341455028,1730902235277,-1757.6,0.0003114,2]
[341455029,1730902235288,-421.31033038,0.0003114,2]
[341455030,1730902235298,-1619.32,0.0003114,2]
[341455031,1730902235308,-500.0,0.00031141,2]
[341455032,1730902235318,-431.76257146,0.00031141,2]
[341455033,1730902235328,-151.7009726,0.00031178,30]
[341455034,1730902235340,-1000.0,0.00031192,5]
[341455035,1730902235352,-1000.0,0.00031228,5]
[341455036,1730902235363,-265.59967353,0.00031232,2]
[341455037,1730902235375,-602.57270859,0.000313,120]
[341455038,1730902235387,-1000.0,0.00031342,5]
[341455039,1730902235398,-1000.0,0.00031381,2]
[341455040,1730902235409,-694.62542097,0.00031382,2]
[341455041,1730902235419,-186.0,0.000314,4]
[341455042,1730902235434,-500.0,0.000314,120]
[341455043,1730902235445,-631.23,0.00031414,2]
[341455044,1730902235457,-1757.6,0.00031414,2]
[341455045,1730902235468,-1619.32,0.00031414,2]
[341455046,1730902235480,-500.0,0.00031415,2]
[341455047,1730902235491,-4000.000001,0.00031479,2]
[341455048,1730902235502,-454.642257,0.00031479,30]
[341455049,1730902235514,-9000.0,0.0003148,2]
[341455050,1730902235526,-150.01,0.00031481,2]
[341455051,1730902235537,-12178.19579712,0.00031481,2]
[341455052,1730902235549,-9000.0,0.00031481,2]
[341455053,1730902235561,-38438.38222445,0.00031482,2]
[341455078,1730902240154,-506.43376472,0.00027397,2]
[341455079,1730902240164,-145.94811512,0.00028399,2]
[341455080,1730902240178,-354.05188488,0.00028399,2]
[341455081,1730902240192,-64.84072769,0.00028399,2]
[341455104,1730902246444,-419.52770081,0.00027397,2]
[341455121,1730902408584,1169.27083333,0.0002082,2]
[341455122,1730902457980,159.624531,0.00013973,2]
[341455124,1730902503221,8559.40986961,0.000216,2]
[341455126,1730902991015,159.134487,0.00013973,2]
[341455127,1730903021043,1169.27083333,0.00022,2]
[341455255,1730903432311,-150.99999942,0.00023,2]
[341455257,1730903432321,-190.6312074,0.00023292,2]
[341455259,1730903432330,-1169.27083333,0.00023473,2]
[341455261,1730903432339,-300.0,0.00024135,2]
[341455263,1730903432349,-300.0,0.00024135,2]
[341455264,1730903432358,-4849.97071298,0.00024136,2]
[341455266,1730903432370,-17248.54465152,0.00024136,2]
[341455268,1730903432381,-278.4797283,0.00024136,2]
[341455269,1730903432391,-166.666666,0.00024218,2]
[341455270,1730903432401,-331.8736744,0.00024302,2]
[341455271,1730903432410,-246.703337,0.00024327,2]
[341455272,1730903432419,-152.0,0.00024347,2]
[341455273,1730903432428,-3498.52749486,0.00024379,2]
[341455274,1730903432437,-503.0,0.00024392,10]
[341455275,1730903432447,-2318.5255057,0.00024392,2]
[341455276,1730903432585,-170.979708,0.00024474,2]